bitfinex-derivatives/quotes_SOLF0:USTF0_20260304
["timestamp","ask_amount","ask_price","bid_price","bid_amount"]
[1772633339802,4.84283575,89.998,89.947,10.005]
[1772633340203,4.84283575,89.998,89.939,10.006]
[1772633340397,4.86386396,89.997,89.939,10.006]
[1772633341003,4.86386396,89.984,89.891,20.023]
[1772633342204,4.86386396,89.984,89.941,10.006]
[1772633342508,4.91953491,90.009,89.91,8.0830213]
[1772633342804,4.91953491,90.029,89.95,8.0830213]
[1772633343304,4.91953491,90.021,89.95,8.0830213]
[1772633343997,4.91953491,90.049,89.95,8.0830213]
[1772633344202,4.95097,90.039,89.983,10.001]
[1772633346107,4.95097,90.039,89.991,10.0]
[1772633346710,4.95097,90.039,89.936,20.013]
[1772633346711,4.95261012,90.056,90.005,9.999]
[1772633347813,4.95261012,90.056,90.021,9.997]
[1772633348006,4.95261012,90.056,89.982,10.2046383]
[1772633348408,4.962667,90.074,89.99,8.0830213]
[1772633348607,4.962667,90.094,90.012,10.2046383]
[1772633348911,4.962667,90.094,89.996,12.95427274]
[1772633348912,4.962667,90.112,90.03,8.0830213]
[1772633349210,4.962667,90.112,90.059,9.993]
[1772633349712,4.96239964,90.139,90.05,8.0830213]
[1772633351914,4.94131904,90.157,90.07,8.0830213]
[1772633353020,4.94131904,90.157,90.071,0.18446896]
[1772633353415,4.94131904,90.157,90.102,9.988]
[1772633354208,4.94131904,90.157,90.092,10.17346896]
[1772633355013,4.94131904,90.157,90.093,1.06675733]
[1772633357119,4.94131904,90.157,90.099,9.988]
[1772633358719,185.70324275,90.19,90.08,8.0830213]
[1772633358720,5.65403581,90.178,90.113,2.40718272]
[1772633359812,5.65403581,90.178,90.125,9.985]
[1772633360016,5.65403581,90.197,90.126,2.77102776]
[1772633360423,5.65403581,90.197,90.13,9.985]
[1772633362423,5.65403581,90.197,90.142,9.983]
[1772633362624,6.05114673,90.189,90.101,3.55904407]
[1772633362920,6.05114673,90.189,90.14,9.984]
[1772633363221,6.05114673,90.189,90.131,3.20503902]
[1772633363423,6.05114673,90.214,90.131,3.20503902]
[1772633364214,6.05114673,90.214,90.148,3.7745768]
[1772633364616,6.05114673,90.209,90.156,9.982]
[1772633366424,6.05114673,90.209,90.147,9.983]
[1772633366622,6.05114673,90.209,90.132,4.29877551]
[1772633367023,6.05114673,90.205,90.147,9.983]
[1772633367624,6.05114673,90.203,90.138,9.984]
[1772633368231,8.0830213,90.21,90.138,9.984]
[1772633368232,6.05114673,90.201,90.138,9.984]
[1772633368530,6.05114673,90.189,90.129,9.985]
[1772633369527,6.05114673,90.189,90.09,8.0830213]
[1772633369719,6.05114673,90.189,90.091,5.19774955]
[1772633370127,6.05114673,90.182,90.091,5.19774955]
[1772633370529,6.05114673,90.18,90.109,5.80816839]
[1772633371220,6.05114673,90.178,90.115,9.986]
[1772633371827,6.05114673,90.178,90.123,9.986]
[1772633372928,8.0830213,90.19,90.126,5.80816839]
[1772633373234,6.05114673,90.189,90.126,5.80816839]
[1772633373433,6.05114673,90.189,90.091,5.80816839]
[1772633374324,19.95,90.222,90.091,5.80816839]
[1772633374325,6.05114673,90.169,90.091,5.80816839]
[1772633374923,6.05114673,90.155,90.094,15.79716839]
[1772633375430,6.05114673,90.155,90.094,5.80816839]
[1772633376432,8.0830213,90.17,90.113,15.79516839]
[1772633376730,8.0830213,90.17,90.114,5.80816839]
[1772633376933,8.0830213,90.17,90.118,5.80816839]
[1772633377122,6.05114673,90.172,90.118,5.80816839]
[1772633378025,6.05114673,90.169,90.071,5.80816839]
[1772633378434,6.05114673,90.166,90.1,5.80816839]
[1772633380531,16.03314673,90.158,90.1,5.80816839]
[1772633380732,6.05114673,90.157,90.1,5.80816839]
[1772633382032,9.983,90.145,90.1,5.80816839]
[1772633382234,6.05114673,90.144,90.051,5.80816839]
[1772633382439,6.05114673,90.129,90.051,5.80816839]
[1772633382641,6.05114673,90.123,90.064,9.992]
[1772633383036,6.05114673,90.123,90.065,5.80816839]
[1772633383238,6.05114673,90.139,90.08,5.80816839]
[1772633384536,6.05114673,90.139,90.091,9.989]
[1772633384741,6.05114673,90.139,90.08,5.80816839]
[1772633385642,6.05114673,90.139,90.082,9.99]
[1772633386543,6.05114673,90.119,90.038,5.80816839]
[1772633387443,9.987,90.108,90.049,9.994]
[1772633388043,6.05114673,90.107,90.049,9.994]
[1772633388642,6.05114673,90.107,90.055,9.993]
[1772633389041,8.0830213,90.12,90.055,9.39538397]
[1772633389241,9.27445486,90.124,90.069,9.991]
[1772633389740,9.27445486,90.119,90.055,9.39538397]
[1772633389939,9.27445486,90.108,90.057,9.993]
[1772633390444,9.27445486,90.108,90.055,9.39538397]
[1772633390939,9.27445486,90.108,90.058,9.993]
[1772633396855,9.27445486,90.106,90.051,9.994]
[1772633398347,9.988,90.104,90.051,9.994]
[1772633398650,19.26245486,90.104,90.051,9.994]
[1772633398953,9.27445486,90.103,90.051,9.994]
[1772633400550,9.27445486,90.099,90.039,9.39538397]
[1772633400754,9.27445486,90.099,90.024,9.39538397]
[1772633401349,9.27445486,90.083,90.028,9.996]
[1772633401545,9.27445486,90.083,90.024,9.39538397]
[1772633402046,9.27445486,90.083,90.034,9.995]
[1772633402246,9.27445486,90.083,90.024,9.39538397]
[1772633402447,9.27445486,90.083,90.048,9.994]
[1772633402654,9.27445486,90.119,90.039,9.39538397]
[1772633403053,9.27445486,90.119,90.081,9.99]
[1772633403354,10.27811989,90.184,90.071,9.39538397]
[1772633403355,9.27445486,90.139,90.071,9.39538397]
[1772633403860,8.06747953,90.16,90.095,19.38438397]
[1772633403861,9.27445486,90.156,90.095,19.38438397]
[1772633405259,9.27445486,90.145,90.086,9.99]
[1772633408253,9.27445486,90.145,90.079,9.39538397]
[1772633409258,9.27445486,90.145,90.093,9.989]
[1772633410658,9.27445486,90.145,90.084,19.38538397]
[1772633411258,9.27445486,90.144,90.09,9.989]
[1772633411958,9.27445486,90.144,90.098,9.39538397]
[1772633412360,9.27445486,90.159,90.098,9.39538397]
[1772633413454,9.27445486,90.159,90.114,9.986]
[1772633413861,9.27445486,90.159,90.083,9.39538397]
[1772633415459,9.27445486,90.159,90.105,9.987]
[1772633416859,9.27445486,90.159,90.112,9.987]
[1772633417158,9.27445486,90.159,90.105,9.39538397]
[1772633417659,9.27445486,90.176,90.127,9.985]
[1772633418964,8.06747953,90.19,90.119,19.38138397]
[1772633418965,11.94128903,90.172,90.119,19.38138397]
[1772633419370,11.94128903,90.172,90.119,9.39538397]
[1772633419874,11.94128903,90.172,90.134,9.984]
[1772633420070,11.94128903,90.187,90.119,9.39538397]
[1772633420468,11.94128903,90.187,90.146,9.983]
[1772633421072,11.94128903,90.206,90.147,12.24515211]
[1772633422171,11.94128903,90.201,90.11,12.24515211]
[1772633423473,11.94128903,90.201,90.136,12.34142325]
[1772633424474,11.94128903,90.201,90.146,9.983]
[1772633425983,11.94128903,90.201,90.137,9.984]
[1772633426182,11.94128903,90.201,90.137,22.32542325]
[1772633426385,12.62296468,90.199,90.144,9.983]
[1772633429184,12.62296468,90.199,90.151,12.34142325]
[1772633429384,12.62296468,90.215,90.151,12.34142325]
[1772633429881,12.62296468,90.209,90.121,12.34142325]
[1772633430082,12.62296468,90.169,90.102,12.34142325]
[1772633430482,12.62296468,90.162,90.102,12.34142325]
[1772633431686,12.62296468,90.162,90.11,12.34142325]
[1772633431883,12.62296468,90.199,90.11,12.34142325]
[1772633432082,12.62296468,90.199,90.135,9.984]
[1772633432287,12.62296468,90.199,90.129,12.34142325]
[1772633434288,12.62296468,90.197,90.142,9.983]
[1772633434481,12.62296468,90.197,90.129,12.34142325]
[1772633435183,12.62296468,90.197,90.139,9.984]
[1772633435588,12.62296468,90.197,90.131,9.985]
[1772633435789,12.62296468,90.197,90.132,12.34142325]
[1772633436592,3.22117715,90.18,90.132,12.34142325]
[1772633437394,3.22117715,90.18,90.135,9.984]
[1772633438295,3.22117715,90.19,90.142,9.983]
[1772633439397,3.22117715,90.18,90.142,9.983]
[1772633440486,3.22117715,90.19,90.142,9.983]
[1772633440693,3.22117715,90.19,90.15,9.982]
[1772633441794,3.22117715,90.19,90.092,13.41049521]
[1772633441795,3.22117715,90.18,90.142,9.983]
[1772633442189,12.62296468,90.197,90.142,9.983]
[1772633442190,3.22117715,90.19,90.142,9.983]
[1772633443993,12.62296468,90.197,90.149,9.983]
[1772633445197,12.62296468,90.197,90.155,9.982]
[1772633446993,12.62296468,90.197,90.15,3.22117715]
[1772633446994,12.62296468,90.197,90.162,9.981]
[1772633448497,17.45574646,90.21,90.162,9.981]
[1772633448699,3.22117715,90.2,90.151,12.34142325]
[1772633449496,17.45574646,90.21,90.161,13.19090728]
[1772633449806,3.22117715,90.22,90.17,16.41208443]
[1772633450301,3.22117715,90.22,90.175,9.98]
[1772633450506,14.23456931,90.218,90.147,13.19090728]
[1772633450707,17.45574646,90.21,90.151,13.19090728]
[1772633451808,14.23456931,90.199,90.151,13.19090728]
[1772633452201,14.23456931,90.179,90.13,13.19090728]
[1772633453399,14.23456931,90.179,90.132,9.985]
[1772633453805,3.221567,90.17,90.13,13.19090728]
[1772633455903,3.221567,90.18,90.13,13.19090728]
[1772633456105,3.221567,90.16,90.109,13.19090728]
[1772633456308,17.45613631,90.17,90.124,13.19090728]
[1772633456606,9.979,90.179,90.124,13.19090728]
[1772633456607,3.221567,90.18,90.124,13.19090728]
[1772633457202,17.45613631,90.15,90.096,10.17194984]
[1772633457508,3.221567,90.14,90.092,13.19090728]
[1772633457704,17.45613631,90.15,90.092,13.19090728]
[1772633458004,3.221567,90.17,90.111,13.19090728]
[1772633458204,17.45613631,90.18,90.121,13.19090728]
[1772633459507,3.221567,90.16,90.121,13.19090728]
[1772633460409,3.221567,90.16,90.101,13.19090728]
[1772633462407,3.221567,90.16,90.111,9.987]
[1772633463409,14.23456931,90.166,90.113,9.987]
[1772633463609,3.221567,90.16,90.113,9.987]
[1772633463810,3.221567,90.16,90.1,3.221567]
[1772633463811,3.221567,90.16,90.114,13.19090728]
[1772633464008,3.221567,90.17,90.114,13.19090728]
[1772633464915,3.221567,90.16,90.116,13.19090728]
[1772633465408,3.221567,90.17,90.127,23.17590728]
[1772633465813,17.45613631,90.17,90.119,9.986]
[1772633466009,3.221567,90.16,90.119,9.986]
[1772633466210,3.221567,90.15,90.119,9.986]
[1772633466412,3.221567,90.16,90.119,9.986]
[1772633469313,3.221567,90.16,90.112,13.19090728]
[1772633469514,3.221567,90.15,90.112,13.19090728]
[1772633469714,3.221567,90.14,90.112,13.19090728]
[1772633470110,3.221567,90.15,90.112,13.19090728]
[1772633472411,13.5690924,90.205,90.11,9.987]
[1772633472412,3.221567,90.17,90.116,13.19090728]
[1772633472913,3.221567,90.17,90.118,13.19090728]
[1772633474419,3.221567,90.14,90.102,13.19090728]
[1772633475519,3.221567,90.14,90.102,23.17890728]
[1772633475714,3.221567,90.14,90.083,13.19090728]
[1772633476411,14.23456931,90.15,90.101,13.19090728]
[1772633476612,14.23456931,90.166,90.111,13.19090728]
[1772633476816,14.23456931,90.166,90.12,13.19090728]
[1772633477815,14.23456931,90.169,90.105,13.19090728]
[1772633478313,3.221567,90.16,90.105,13.19090728]
[1772633478516,10.34369891,90.205,90.113,15.41249542]
[1772633478816,410.62079068,90.442,90.1,3.221567]
[1772633478817,10.33332658,90.279,90.163,155.269]
[1772633479015,79.47632158,90.286,90.211,9.976]
[1772633479215,79.46992612,90.269,90.199,10.2319712]
[1772633479411,79.46992612,90.269,90.204,10.2319712]
[1772633479618,3.221567,90.25,90.189,9.978]
[1772633479914,3.221567,90.24,90.188,10.2319712]
[1772633480114,3.221567,90.23,90.178,10.2319712]
[1772633480314,3.221567,90.23,90.178,9.979]
[1772633480620,77.54688465,90.239,90.178,9.979]
[1772633481217,9.967,90.288,90.192,9.978]
[1772633481512,9.967,90.288,90.158,13.41049521]
[1772633481513,8.04445388,90.26,90.178,10.2319712]
[1772633481717,8.04445388,90.26,90.174,10.2319712]
[1772633482217,8.04445388,90.26,90.172,10.2319712]
[1772633482418,8.04445388,90.26,90.15,8.04445388]
[1772633482419,8.04445388,90.26,90.163,10.2319712]
[1772633482614,79.14774144,90.259,90.168,10.2319712]
[1772633482919,79.14774144,90.259,90.167,10.2319712]
[1772633483122,79.14774144,90.259,90.178,9.979]
[1772633483318,79.14774144,90.259,90.166,10.2319712]
[1772633483720,79.14774144,90.259,90.171,9.98]
[1772633485419,79.23045511,90.239,90.171,9.98]
[1772633485818,79.23045511,90.239,90.159,20.2129712]
[1772633486018,79.23045511,90.239,90.159,9.981]
[1772633486220,89.20345511,90.239,90.159,9.981]
[1772633486419,79.03335631,90.219,90.143,10.2319712]
[1772633486625,79.03335631,90.219,90.139,10.2319712]
[1772633487221,79.03335631,90.219,90.138,10.2319712]
[1772633487424,79.03335631,90.219,90.135,10.2319712]
[1772633487824,79.03335631,90.219,90.122,13.41049521]
[1772633487825,79.03335631,90.219,90.138,10.2319712]
[1772633488523,79.03335631,90.219,90.156,9.982]
[1772633489231,79.03335631,90.219,90.145,9.983]
[1772633489430,79.15619887,90.216,90.145,9.983]
[1772633490835,79.15619887,90.216,90.154,9.982]
[1772633491136,79.15619887,90.216,90.137,10.2319712]
[1772633491735,9.975,90.215,90.143,9.983]
[1772633491943,79.3364709,90.214,90.143,9.983]
[1772633493038,87.38470441,90.2,90.129,9.985]
[1772633493836,79.34025053,90.179,90.119,9.986]
[1772633494031,79.34025053,90.179,90.116,10.15538801]
[1772633494230,79.34025053,90.179,90.117,10.15538801]
[1772633495139,79.34025053,90.179,90.127,9.985]
[1772633495742,79.34025053,90.179,90.117,9.986]
[1772633496539,79.38346574,90.169,90.107,9.987]
[1772633496943,79.38346574,90.169,90.097,10.15538801]
[1772633498442,79.38346574,90.169,90.115,9.986]
[1772633500941,79.38346574,90.169,90.106,9.987]
[1772633501147,79.38346574,90.169,90.068,13.41049521]
[1772633501345,8.04445388,90.15,90.081,10.18124385]
[1772633501646,79.44006103,90.149,90.077,10.18124385]
[1772633503048,79.44006103,90.149,90.095,9.989]
[1772633503747,79.44006103,90.149,90.103,9.988]
[1772633506540,3.22424256,90.13,90.103,9.988]
[1772633508141,3.22424256,90.13,90.104,8.3938938]
[1772633508345,3.22424256,90.13,90.105,8.3938938]
[1772633508546,3.22424256,90.13,90.106,8.3938938]
[1772633508746,3.22424256,90.13,90.107,8.3938938]
[1772633508942,3.22424256,90.13,90.108,8.3938938]
[1772633509250,3.22424256,90.13,90.109,8.3938938]
[1772633509445,3.22424256,90.13,90.11,8.3938938]
[1772633509645,79.44006103,90.149,90.111,18.3808938]
[1772633509844,3.22424256,90.14,90.112,8.3938938]
[1772633510150,3.22424256,90.14,90.113,8.3938938]
[1772633510353,3.22424256,90.12,90.094,10.17645347]
[1772633510650,3.22424256,90.11,90.075,10.17645347]
[1772633511249,3.22424256,90.11,90.074,10.17645347]
[1772633511448,3.22424256,90.11,90.084,9.99]
[1772633512045,79.65817648,90.136,90.091,9.989]
[1772633512243,3.22424256,90.12,90.091,9.989]
[1772633514054,3.22424256,90.11,90.083,9.99]
[1772633514255,78.6832163,90.12,90.083,9.99]
[1772633514449,78.68440818,90.12,90.083,9.99]
[1772633515658,3.22543444,90.13,90.08,3.22543444]
[1772633515959,3.22543444,90.12,90.075,10.17645347]
[1772633516751,3.22543444,90.13,90.075,10.17645347]
[1772633517158,3.22543444,90.13,90.105,9.988]
[1772633517359,75.46286915,90.148,90.105,9.988]
[1772633517559,3.22543444,90.13,90.105,9.988]
[1772633518959,3.22543444,90.14,90.105,9.988]
[1772633519664,3.22543444,90.15,90.09,3.22543444]
[1772633519962,3.22543444,90.15,90.097,10.17645347]
[1772633520258,3.22543444,90.15,90.1,3.22543444]
[1772633520458,3.22543444,90.15,90.1,13.40188791]
[1772633520660,3.22543444,90.13,90.099,10.17645347]
[1772633520860,3.22543444,90.11,90.082,9.99]
[1772633521065,3.22543444,90.12,90.079,10.17645347]
[1772633522160,3.22543444,90.12,90.078,10.17645347]
[1772633522362,3.22543444,90.12,90.095,9.989]
[1772633522570,75.47093783,90.13,90.096,8.33882999]
[1772633522764,75.47093783,90.13,90.097,8.33882999]
[1772633523065,75.47093783,90.13,90.098,8.33882999]
[1772633523363,75.47093783,90.13,90.099,8.33882999]
[1772633523563,75.47093783,90.13,90.078,10.17645347]
[1772633523764,75.47093783,90.13,90.079,8.33959852]
[1772633523967,75.47093783,90.13,90.08,8.33959852]
[1772633524164,75.47093783,90.13,90.081,8.33959852]
[1772633524364,75.47093783,90.13,90.084,9.99]
[1772633524564,75.47093783,90.13,90.085,8.33959852]
[1772633524763,75.47093783,90.13,90.086,8.33959852]
[1772633524964,75.47093783,90.13,90.087,8.33959852]
[1772633525266,75.47093783,90.13,90.088,8.33959852]
[1772633525465,75.47093783,90.13,90.089,8.33959852]
[1772633525663,75.47093783,90.13,90.09,8.33959852]
[1772633525962,75.47093783,90.13,90.096,9.988]
[1772633526271,8.06362265,90.16,90.102,10.17645347]
[1772633526464,8.06362265,90.16,90.103,8.33959852]
[1772633526663,8.06362265,90.16,90.104,8.33959852]
[1772633526963,8.06362265,90.16,90.105,8.33959852]
[1772633527269,8.06362265,90.16,90.106,8.33959852]
[1772633527467,8.06362265,90.16,90.117,9.986]
[1772633527668,8.06362265,90.16,90.118,8.33959852]
[1772633528169,66.95401795,90.159,90.118,8.33959852]
[1772633528571,66.95401795,90.159,90.097,10.17645347]
[1772633529063,62.78421869,90.15,90.104,9.988]
[1772633530673,62.78421869,90.15,90.102,10.17645347]
[1772633530874,62.78421869,90.15,90.096,9.988]
[1772633531176,62.81739119,90.139,90.096,9.988]
[1772633532372,62.81739119,90.139,90.097,10.17645347]
[1772633533269,62.81739119,90.139,90.098,10.17645347]
[1772633533475,62.81739119,90.139,90.102,10.17645347]
[1772633534173,62.81739119,90.139,90.104,10.17645347]
[1772633534575,62.81739119,90.139,90.103,10.17645347]
[1772633534969,62.81739119,90.139,90.104,10.17645347]
[1772633535167,62.81739119,90.139,90.105,10.17645347]
[1772633536178,62.81739119,90.139,90.107,10.17645347]
[1772633537174,62.81739119,90.139,90.109,20.16345347]
[1772633537675,62.81739119,90.139,90.108,10.17645347]
[1772633538077,62.81739119,90.139,90.101,10.17645347]
[1772633538272,62.81739119,90.139,90.102,10.17645347]
[1772633539279,62.81739119,90.139,90.104,10.17645347]
[1772633540380,62.81739119,90.139,90.101,9.988]
[1772633540381,62.81739119,90.139,90.106,10.17645347]
[1772633541676,57.68190777,90.135,90.092,10.25828922]
[1772633541878,57.68190777,90.135,90.052,20.39783831]
[1772633542280,57.68190777,90.135,90.053,290.24882591]
[1772633542479,3.22515804,90.12,90.07,3.22515804]
[1772633542679,3.22515804,90.12,90.077,9.991]
[1772633542978,49.11392581,90.12,90.06,3.22515804]
[1772633543278,49.11392581,90.12,90.076,9.991]
[1772633546477,45.88876777,90.12,90.076,9.991]
[1772633547378,45.93029722,90.135,90.08,3.22515804]
[1772633548385,45.93029722,90.135,90.096,9.988]
[1772633549585,45.92832256,90.159,90.104,9.988]
[1772633549883,45.92832256,90.159,90.1,3.22515804]
[1772633550485,45.92420999,90.149,90.09,3.22515804]
[1772633551280,45.92420999,90.149,90.106,9.987]
[1772633552388,45.90424176,90.129,90.071,20.39783831]
[1772633552582,45.90424176,90.129,90.07,23.62299635]
[1772633552782,3.22515804,90.12,90.061,20.39783831]
[1772633552983,3.22515804,90.12,90.084,9.99]
[1772633553187,49.1293998,90.12,90.084,9.99]
[1772633554784,45.87593286,90.109,90.06,3.22515804]
[1772633555693,45.87593286,90.109,90.053,269.8509876]
[1772633556498,45.87593286,90.109,90.068,9.992]
[1772633557496,19.964,90.159,90.068,9.992]
[1772633557497,45.90961236,90.099,90.068,9.992]
[1772633557793,45.90961236,90.099,90.06,9.992]
[1772633558397,19.964,90.159,90.06,9.992]
[1772633558398,45.91588438,90.089,90.06,9.992]
[1772633558598,45.91588438,90.089,90.053,9.993]
[1772633560397,45.91588438,90.089,90.059,9.993]
[1772633560598,45.91588438,90.089,90.04,3.22515804]
[1772633561996,45.91588438,90.089,90.061,9.992]
[1772633562799,19.964,90.159,90.04,3.22515804]
[1772633562800,3.22515804,90.1,90.068,9.992]
[1772633563497,3.22515804,90.1,90.05,3.22515804]
[1772633563696,3.22515804,90.1,90.04,3.22515804]
[1772633564503,19.964,90.159,90.032,19.992]
[1772633564504,3.22515804,90.09,90.032,19.992]
[1772633564796,32.19586011,90.089,90.018,20.39783831]
[1772633564996,19.964,90.159,90.052,9.993]
[1772633564997,35.42101815,90.08,90.052,9.993]
[1772633565909,3.22515804,90.1,90.05,3.22515804]
[1772633567201,3.22515804,90.1,90.04,3.22515804]
[1772633567901,28.6062101,90.09,90.033,19.991]
[1772633568506,28.6062101,90.09,90.056,9.993]
[1772633569502,28.576826,90.08,90.048,9.994]
[1772633570102,28.576826,90.08,90.054,9.993]
[1772633570911,25.35166796,90.08,90.054,9.993]
[1772633572406,28.576826,90.08,90.029,13.65980301]
[1772633572606,28.576826,90.08,90.013,19.996]
[1772633572607,28.59203784,90.07,90.028,13.65980301]
[1772633572806,28.59203784,90.07,90.023,13.65980301]
[1772633573208,25.3668798,90.07,90.044,9.994]
[1772633574608,25.37069191,90.084,90.051,9.993]
[1772633574912,25.37069191,90.084,90.03,3.22515804]
[1772633575411,25.37069191,90.084,90.046,9.994]
[1772633576105,25.37062179,90.079,90.046,9.994]
[1772633579108,25.37062179,90.079,90.038,9.995]
[1772633579517,25.37062179,90.079,90.02,3.22807607]
[1772633580212,25.37062179,90.079,90.03,3.22807607]
[1772633580407,25.37062179,90.079,90.02,3.22807607]
[1772633580607,13.80451016,90.15,89.993,20.0]
[1772633580608,25.34454232,90.099,90.04,3.22807607]
[1772633581012,28.57261839,90.09,90.04,3.22807607]
[1772633581213,28.57261839,90.09,90.031,13.65980301]
[1772633581410,25.34454232,90.09,90.031,13.65980301]
[1772633581609,28.57261839,90.09,90.031,13.65980301]
[1772633582007,28.57261839,90.09,90.03,16.88787908]
[1772633582204,25.34420537,90.079,90.03,13.65980301]
[1772633582410,25.34420537,90.069,90.019,13.65980301]
[1772633582614,25.34420537,90.069,90.044,9.994]
[1772633583906,25.34420537,90.069,90.036,9.995]
[1772633587417,3.22807607,90.09,90.048,9.994]
[1772633589210,16.30079341,90.089,90.048,9.994]
[1772633589417,19.52886948,90.08,90.048,9.994]
[1772633590918,19.52886948,90.08,90.041,9.995]
[1772633591317,19.52886948,90.08,90.047,9.994]
[1772633592617,3.22807607,90.1,90.04,3.22807607]
[1772633593319,19.50817979,90.1,90.04,3.22807607]
[1772633593723,16.28010372,90.089,90.055,9.993]
[1772633594124,19.47064089,90.08,90.026,13.65980301]
[1772633594418,3.22807607,90.07,90.032,13.65980301]
[1772633594618,19.47064089,90.08,90.036,13.65980301]
[1772633594819,19.47064089,90.08,90.054,9.993]
[1772633595026,16.24256482,90.093,90.04,3.22807607]
[1772633595324,16.24256482,90.089,90.026,13.71199942]
[1772633595625,3.22807607,90.06,90.005,5.78225583]
[1772633596027,3.22807607,90.06,90.017,15.77925583]
[1772633596217,3.22807607,90.06,90.018,5.67526424]
[1772633597926,3.22807607,90.06,90.019,5.67526424]
[1772633598324,3.22807607,90.06,90.026,9.996]
[1772633601122,3.22807607,90.04,90.005,5.59177623]
[1772633601525,3.22807607,90.03,89.991,5.59177623]
[1772633602525,3.22807607,90.03,89.994,10.0]
[1772633603430,3.22807607,90.04,89.997,10.0]
[1772633604522,3.22807607,90.03,89.997,10.0]
[1772633604929,3.22807607,90.03,89.995,5.57573]
[1772633604930,3.22807607,90.03,89.977,5.57371541]
[1772633605122,3.22807607,90.02,89.977,5.57371541]
[1772633605523,3.22807607,90.01,89.977,5.57371541]
[1772633605731,3.22807607,90.02,89.977,5.57371541]
[1772633605932,3.22807607,90.03,89.977,5.57371541]
[1772633606333,3.22807607,90.01,89.977,5.57371541]
[1772633606533,3.22807607,90.01,89.976,10.002]
[1772633607135,3.22807607,90.03,89.979,5.57416848]
[1772633607330,3.22807607,90.04,89.981,5.57416848]
[1772633607537,3.22807607,90.02,89.981,5.57416848]
[1772633608735,3.22807607,90.02,89.982,5.52269359]
[1772633608937,3.22807607,90.03,89.982,5.52269359]
[1772633609639,3.22807607,90.01,89.976,10.29368339]
[1772633609839,8.86074043,90.071,89.966,5.52269359]
[1772633610043,3.22807607,90.0,89.966,5.52269359]
[1772633610343,3.22807607,90.01,89.966,5.52269359]
[1772633610739,124.0,90.07,89.974,5.55101106]
[1772633610940,3.22807607,90.04,89.981,5.55101106]
[1772633612550,3.22807607,90.04,89.999,9.999]
[1772633612843,3.22807607,90.04,89.981,5.55101106]
[1772633612844,3.22807607,90.03,89.981,5.55101106]
[1772633613849,3.22807607,90.03,89.998,9.999]
[1772633614251,3.22807607,90.03,89.981,5.55101106]
[1772633615343,3.22807607,90.03,89.989,10.0]
[1772633617548,3.22807607,90.03,89.996,10.0]
[1772633618044,3.22807607,90.03,89.988,10.001]
[1772633618649,3.22807607,90.02,89.97,13.52175946]
[1772633618854,3.22807607,90.0,89.96,10.29368339]
[1772633619054,3.22807607,90.01,89.961,5.58074558]
[1772633619457,3.22807607,90.01,89.975,10.002]
[1772633619755,3.22807607,90.02,89.961,5.58074558]
[1772633620852,155.468,90.048,89.886,7.512e-05]
[1772633621056,466.341,90.06,89.884,10.51985533]
[1772633621057,19.998,90.006,89.884,10.51985533]
[1772633621257,9.10877538,90.019,89.927,10.51985533]
[1772633621459,3.22807607,89.96,89.901,10.51985533]
[1772633621960,3.22807607,89.95,89.902,10.51985533]
[1772633622161,3.22807607,89.94,89.902,10.51985533]
[1772633622751,3.22807607,89.95,89.902,10.51985533]
[1772633623962,3.22807607,89.93,89.861,10.61405931]
[1772633624954,3.22807607,89.92,89.874,10.63153739]
[1772633625756,9.10877538,90.001,89.875,10.013]
[1772633625961,3.22807607,89.92,89.876,10.63153739]
[1772633626357,3.22807607,89.93,89.876,10.63153739]
[1772633626958,9.10877538,90.006,89.876,10.63153739]
[1772633627158,3.22807607,89.94,89.876,10.63153739]
[1772633628265,3.22807607,89.94,89.879,10.59574237]
[1772633628661,155.538,90.007,89.879,10.59574237]
[1772633628864,3.22807607,89.91,89.85,3.22807607]
[1772633629068,3.22807607,89.91,89.851,10.58756166]
[1772633629369,9.10877538,89.993,89.87,3.22807607]
[1772633629568,3.22807607,89.97,89.901,8.97352362]
[1772633629766,3.22807607,89.96,89.911,8.97352362]
[1772633631861,3.22807607,89.97,89.911,8.97352362]
[1772633632063,3.22807607,89.98,89.92,3.22807607]
[1772633632264,3.22807607,89.98,89.911,8.97352362]
[1772633632962,3.22807607,89.98,89.92,3.22807607]
[1772633633364,3.22807607,89.97,89.918,10.008]
[1772633633568,3.22807607,89.97,89.911,8.97352362]
[1772633634267,3.22807607,89.97,89.914,8.1220236]
[1772633635472,3.22807607,89.97,89.919,10.008]
[1772633636478,3.23783926,89.96,89.894,8.06173629]